bitfinex/quotes_SOLUSD_20251001
["timestamp","ask_amount","ask_price","bid_price","bid_amount"]
[1759356397552,0.1,219.87,219.83,2.18676601]
[1759356397760,0.1,219.87,219.79,0.28432314]
[1759356397761,0.1,219.87,219.84,2.87676601]
[1759356397932,0.1,219.87,219.85,0.69]
[1759356398129,4.64815459,219.87,219.79,4.54979753]
[1759356398354,4.64815459,219.87,219.78,11.37501137]
[1759356398355,2.18676601,219.83,219.78,0.69]
[1759356398729,2.18676601,219.81,219.76,0.69]
[1759356398958,31.67647521,219.86,219.77,0.69]
[1759356399159,2.18676601,219.84,219.77,2.87676601]
[1759356399326,2.18676601,219.85,219.78,2.87676601]
[1759356399530,31.67647521,219.86,219.79,0.69]
[1759356399770,2.18676601,219.85,219.79,0.69]
[1759356400055,2.18676601,219.84,219.79,0.69]
[1759356400461,2.18676601,219.81,219.77,5.24019665]
[1759356400650,2.18676601,219.81,219.78,0.69]
[1759356400831,2.18676601,219.82,219.79,0.69]
[1759356401150,2.18676601,219.83,219.79,0.69]
[1759356401338,2.18676601,219.83,219.77,4.55019665]
[1759356401339,2.18676601,219.83,219.8,0.69]
[1759356402331,1.39949609,219.83,219.8,0.69]
[1759356402534,1.39949609,219.83,219.78,5.23997851]
[1759356402738,1.39949609,219.83,219.79,0.69]
[1759356403147,1.39949609,219.82,219.79,0.69]
[1759356404161,1.39949609,219.83,219.79,0.69]
[1759356404455,1.39949609,219.82,219.79,0.69]
[1759356406161,10.87647521,219.84,219.79,0.69]
[1759356406460,1.39949609,219.82,219.77,5.24013995]
[1759356406650,1.39949609,219.82,219.78,0.69]
[1759356406851,5.94864086,219.83,219.79,0.69]
[1759356407368,5.94864086,219.83,219.77,5.24013995]
[1759356407666,5.94864086,219.83,219.75,0.69]
[1759356407667,1.39949609,219.79,219.75,0.69]
[1759356407968,22.19949609,219.8,219.76,0.69]
[1759356408159,22.19949609,219.8,219.77,0.69]
[1759356408367,22.19949609,219.8,219.75,4.55060384]
[1759356408539,22.19949609,219.8,219.76,0.69]
[1759356408737,22.19949609,219.8,219.77,0.69]
[1759356409139,20.8,219.8,219.77,0.69]
[1759356409562,20.8,219.8,219.75,4.55060384]
[1759356409750,5.94894687,219.81,219.76,0.69]
[1759356410062,5.94894687,219.81,219.77,0.69]
[1759356410445,1.39949609,219.81,219.77,0.69]
[1759356410651,22.19949609,219.81,219.77,0.69]
[1759356411638,26.74895085,219.81,219.77,0.69]
[1759356412945,5.94911629,219.8,219.77,0.69]
[1759356414669,20.8,219.81,219.78,0.72]
[1759356414967,1.39949609,219.81,219.78,0.72]
[1759356415175,25.45915486,219.83,219.79,0.72]
[1759356415176,1.39949609,219.83,219.79,0.72]
[1759356415365,134.29949609,219.85,219.79,0.72]
[1759356415874,1.39949609,219.84,219.79,0.72]
[1759356416575,134.29949609,219.85,219.79,0.72]
[1759356416954,138.8481306,219.85,219.79,5.26963913]
[1759356417151,132.9,219.85,219.79,5.26963913]
[1759356417381,134.29949609,219.85,219.8,0.72]
[1759356417678,137.44857586,219.85,219.79,4.54963913]
[1759356417851,1.39949609,219.83,219.77,5.27005413]
[1759356418175,1.39949609,219.83,219.78,0.72]
[1759356418344,1.39949609,219.83,219.79,0.72]
[1759356418541,1.39949609,219.83,219.8,0.72]
[1759356418844,1.39949609,219.84,219.8,0.72]
[1759356420568,1.39949609,219.84,219.81,0.72]
[1759356420879,137.44857586,219.85,219.82,0.72]
[1759356420880,134.29949609,219.85,219.82,0.72]
[1759356421049,134.29949609,219.85,219.81,4.54921169]
[1759356421368,20.9,219.87,219.82,0.72]
[1759356421577,20.9,219.87,219.83,0.72]
[1759356421766,20.9,219.87,219.84,0.72]
[1759356422357,20.9,219.87,219.82,0.72]
[1759356422545,20.9,219.87,219.83,4.54896965]
[1759356422752,22.29949609,219.87,219.84,0.72]
[1759356423245,0.1,219.87,219.85,1.39949609]
[1759356423476,0.1,219.87,219.86,0.72]
[1759356424251,0.1,219.87,219.86,5.26834894]
[1759356425281,0.1,219.87,219.86,0.72]
[1759356425782,0.1,219.87,219.84,0.72]
[1759356426313,0.1,219.87,219.85,0.72]
[1759356427382,0.1,219.87,219.85,5.26851988]
[1759356428380,0.1,219.87,219.86,0.72]
[1759356428961,0.1,219.87,219.84,4.54876273]
[1759356429279,0.1,219.87,219.85,0.72]
[1759356429861,0.1,219.87,219.86,0.72]
[1759356430467,0.1,219.87,219.86,5.26834894]
[1759356431071,0.1,219.87,219.86,4.26834894]
[1759356432283,0.1,219.87,219.85,4.54855583]
[1759356432870,0.1,219.87,219.85,5.94805192]
[1759356433064,0.1,219.87,219.86,0.72]
[1759356433265,0.1,219.87,219.86,2.11949609]
[1759356434185,0.1,219.87,219.86,0.72]
[1759356434393,0.1,219.87,219.86,6.66784503]
[1759356439981,0.1,219.87,219.86,5.26834894]
[1759356440691,0.1,219.87,219.86,5.23834894]
[1759356441704,0.1,219.87,219.86,4.54834894]
[1759356441871,0.1,219.87,219.86,5.23834894]
[1759356442788,0.1,219.87,219.86,4.54834894]
[1759356443000,0.1,219.87,219.86,6.63784503]
[1759356448908,0.1,219.87,219.86,5.23834894]
[1759356449107,0.1,219.87,219.86,5.94784503]
[1759356449290,0.1,219.87,219.85,4.54854169]
[1759356449602,0.1,219.87,219.85,36.54854169]
[1759356449986,0.1,219.87,219.84,4.54876273]
[1759356450188,0.1,219.87,219.85,1.39949609]
[1759356450384,0.1,219.87,219.85,2.10949609]
[1759356450905,0.1,219.87,219.86,2.10949609]
[1759356451598,0.1,219.87,219.86,1.39949609]
[1759356452281,0.1,219.87,219.86,5.94784503]
[1759356453714,0.1,219.87,219.86,4.54834894]
[1759356454100,0.1,219.87,219.86,5.25834894]
[1759356454602,0.1,219.87,219.86,4.54834894]
[1759356454789,0.1,219.87,219.86,5.25834894]
[1759356454988,0.1,219.87,219.86,4.54834894]
[1759356455190,0.1,219.87,219.86,5.25834894]
[1759356456417,0.1,219.87,219.86,4.54834894]
[1759356460397,0.1,219.87,219.86,5.25834894]
[1759356460606,0.1,219.87,219.86,6.65784503]
[1759356462018,0.1,219.87,219.85,4.54851374]
[1759356462322,0.1,219.87,219.86,32.0]
[1759356462496,0.1,219.87,219.86,32.71]
[1759356463294,0.1,219.87,219.86,37.25834894]
[1759356463487,0.1,219.87,219.86,36.54834894]
[1759356463706,0.1,219.87,219.83,6.37048279]
[1759356463908,0.82,219.87,219.84,34.18501231]
[1759356464195,0.1,219.87,219.84,34.18501231]
[1759356464507,0.1,219.87,219.84,34.89501231]
[1759356464807,0.1,219.87,219.85,32.0]
[1759356465121,2.90501231,219.86,219.8,32.71]
[1759356465315,2.90501231,219.85,219.8,32.0]
[1759356465494,2.90501231,219.84,219.8,36.54956057]
[1759356465695,0.72,219.83,219.8,36.54956057]
[1759356466609,0.72,219.82,219.76,5.09002462]
[1759356466815,2.90501231,219.81,219.77,32.0]
[1759356466996,2.90501231,219.81,219.77,32.71]
[1759356467195,2.18501231,219.81,219.77,32.71]
[1759356467737,2.18501231,219.82,219.77,32.71]
[1759356467906,2.90501231,219.82,219.77,32.71]
[1759356468312,2.90501231,219.82,219.77,32.0]
[1759356468629,2.90501231,219.82,219.77,37.26015147]
[1759356468630,0.72,219.81,219.77,37.26015147]
[1759356468999,0.72,219.81,219.75,11.37642159]
[1759356469000,13.06148752,219.81,219.75,5.26047552]
[1759356469201,0.72,219.8,219.76,32.0]
[1759356469797,2.90501231,219.79,219.75,32.0]
[1759356470115,0.72,219.82,219.76,0.71]
[1759356470297,13.06148752,219.81,219.76,0.71]
[1759356470500,13.06148752,219.81,219.77,5.26019631]
[1759356470899,13.06148752,219.81,219.77,0.71]
[1759356471223,13.78148752,219.81,219.77,0.71]
[1759356471633,13.06148752,219.81,219.76,4.55040252]
[1759356471837,0.72,219.8,219.76,5.26040252]
[1759356472197,32.0,219.83,219.78,2.18501231]
[1759356472409,0.82,219.88,219.81,2.18501231]
[1759356472627,10.97647521,219.87,219.81,34.18501231]
[1759356472901,10.97647521,219.87,219.82,0.71]
[1759356473208,10.97647521,219.87,219.81,34.18501231]
[1759356473209,0.1,219.87,219.84,2.18501231]
[1759356473419,0.1,219.87,219.84,0.71]
[1759356473719,0.1,219.87,219.83,2.18501231]
[1759356473925,0.1,219.87,219.84,0.66]
[1759356474106,0.1,219.87,219.84,2.84501231]
[1759356474302,0.1,219.87,219.85,0.66]
[1759356474831,0.1,219.87,219.86,0.66]
[1759356476041,0.1,219.87,219.84,37.20866515]
[1759356476343,0.1,219.87,219.85,0.66]
[1759356477143,0.1,219.87,219.86,0.66]
[1759356478539,0.1,219.87,219.84,34.18501231]
[1759356478730,0.1,219.87,219.85,0.66]
[1759356479041,0.1,219.87,219.86,2.84501231]
[1759356479336,0.1,219.87,219.86,7.39336125]
[1759356480102,0.1,219.87,219.86,5.20834894]
[1759356480308,0.1,219.87,219.86,7.39336125]
[1759356480643,0.1,219.87,219.86,7.67768439]
[1759356483047,0.1,219.87,219.86,39.67768439]
[1759356486127,0.1,219.87,219.86,7.67768439]
[1759356486321,0.1,219.87,219.86,39.67768439]
[1759356488364,0.81,220.02,219.89,20.8]
[1759356488519,0.1,220.02,219.98,2.18501231]
[1759356488712,0.1,220.02,219.98,34.18501231]
[1759356488926,0.1,220.02,219.98,34.84501231]
[1759356489223,0.1,220.02,219.98,37.31434776]
[1759356489425,0.1,220.02,220.01,21.08432314]
[1759356489622,0.1,220.02,220.01,55.26933545]
[1759356489838,0.1,220.02,220.01,55.92933545]
[1759356490050,0.1,220.02,220.01,23.92933545]
[1759356490271,0.1,220.02,220.01,34.18501231]
[1759356490560,0.81,220.02,220.01,32.0]
[1759356490762,0.81,220.02,219.98,2.18501231]
[1759356490936,0.71,220.01,219.99,32.02]
[1759356491138,0.71,220.0,219.97,2.18501231]
[1759356491439,0.71,220.0,219.96,32.02]
[1759356491440,0.71,219.99,219.96,32.02]
[1759356491754,0.1,220.02,219.98,2.18501231]
[1759356491936,0.71,220.01,219.98,2.18501231]
[1759356492140,0.71,220.0,219.98,32.04]
[1759356492376,15.42234301,219.98,219.94,32.04]
[1759356492537,0.71,219.97,219.93,34.22501231]
[1759356492733,4.54555253,220.0,219.93,34.22501231]
[1759356492734,0.71,220.0,219.94,2.18501231]
[1759356493075,2.89501231,219.99,219.93,2.18501231]
[1759356493273,10.87647521,219.97,219.88,0.66]
[1759356493436,0.71,219.96,219.92,2.18501231]
[1759356493888,0.71,219.95,219.91,23.96]
[1759356494066,0.71,219.94,219.91,2.18501231]
[1759356494374,0.71,219.94,219.91,32.06]
[1759356494670,0.71,219.94,219.9,34.24501231]
[1759356494851,4.54626691,219.97,219.91,2.18501231]
[1759356494852,11.58647521,219.96,219.91,2.18501231]
[1759356495470,11.58647521,219.96,219.9,32.06]
[1759356495647,11.58647521,219.96,219.91,2.18501231]
[1759356495969,0.71,219.95,219.91,2.18501231]
[1759356496332,2.89501231,219.94,219.85,0.66]
[1759356496537,2.18501231,219.92,219.86,2.18501231]
[1759356496778,13.77148752,219.93,219.87,2.18501231]
[1759356496959,11.58647521,219.93,219.87,2.18501231]
[1759356497267,0.71,219.92,219.87,2.18501231]
[1759356497471,10.87647521,219.93,219.87,2.18501231]
[1759356497652,10.87647521,219.93,219.9,2.18501231]
[1759356497856,0.71,219.93,219.9,2.18501231]
[1759356498041,0.71,219.92,219.89,2.18501231]
[1759356498247,0.71,219.91,219.85,32.06]
[1759356498580,10.87647521,219.94,219.89,2.18501231]
[1759356498734,0.71,219.94,219.91,2.18501231]
[1759356498934,0.71,219.93,219.86,0.28432314]
[1759356499178,0.71,219.93,219.88,2.18501231]
[1759356499377,10.87647521,219.91,219.86,2.18501231]
[1759356499541,2.18501231,219.91,219.86,0.66]
[1759356499737,2.89501231,219.91,219.85,2.18501231]
[1759356499942,0.71,219.91,219.86,2.18501231]
[1759356500157,10.87647521,219.92,219.87,2.84501231]
[1759356500382,11.58647521,219.92,219.87,2.84501231]
[1759356500544,11.56647521,219.92,219.87,2.18501231]
[1759356501079,10.87647521,219.92,219.89,2.18501231]
[1759356502258,10.87647521,219.92,219.87,0.72]
[1759356502259,10.87647521,219.95,219.91,2.18501231]
[1759356502566,0.69,219.94,219.91,2.18501231]
[1759356503074,10.87647521,219.95,219.92,0.72]
[1759356503444,10.87647521,219.99,219.94,2.18501231]
[1759356503650,10.87647521,219.99,219.94,2.89501231]
[1759356503651,0.67,219.99,219.94,2.89501231]
[1759356504870,10.87647521,220.0,219.96,2.18501231]
[1759356505069,11.54647521,220.0,219.95,2.89501231]
[1759356505787,0.67,219.99,219.92,0.71]
[1759356505952,2.85501231,219.99,219.93,2.18501231]
[1759356506158,32.85,220.02,219.96,2.18501231]
[1759356506487,32.18,220.02,219.98,2.18501231]
[1759356506656,32.18,220.02,219.98,2.89501231]
[1759356506858,11.54647521,220.01,219.96,2.18501231]
[1759356507075,10.87647521,220.01,219.96,2.18501231]
[1759356507276,11.54647521,220.01,219.96,2.89501231]
[1759356507459,34.36501231,220.02,219.93,4.54671256]
[1759356507460,0.1,220.02,219.99,2.18501231]
[1759356507786,0.1,220.02,219.94,0.28432314]
[1759356507787,0.1,220.02,220.01,2.18501231]
[1759356508080,0.1,220.02,220.01,2.89501231]
[1759356508659,0.1,220.02,220.01,0.71]
[1759356508852,0.1,220.02,219.97,0.28432314]
[1759356509092,0.1,220.02,219.99,2.18501231]
[1759356509393,0.1,220.02,220.0,2.89501231]
[1759356510080,0.1,220.02,220.01,0.71]
[1759356510274,0.1,220.02,219.97,0.28432314]
[1759356510473,0.1,220.02,219.99,2.18501231]
[1759356510776,0.1,220.02,219.98,2.18501231]
[1759356510958,0.1,220.02,219.98,0.71]
[1759356511163,0.1,220.02,219.99,2.89501231]
[1759356513868,0.1,220.02,220.0,2.18501231]
[1759356514253,0.1,220.02,219.99,0.71]
[1759356514254,0.1,220.02,219.99,2.89501231]
[1759356515982,0.1,220.02,220.0,2.18501231]
[1759356516163,0.1,220.02,220.0,2.89501231]
[1759356516363,0.1,220.02,220.0,2.18501231]
[1759356516573,0.1,220.02,220.01,0.71]
[1759356516791,0.1,220.02,220.01,2.89501231]
[1759356516988,0.1,220.02,220.01,7.44026025]
[1759356517167,0.1,220.02,220.01,5.25524794]
[1759356517365,0.1,220.02,220.01,7.44026025]
[1759356517773,0.1,220.02,220.01,0.71]
[1759356518172,0.1,220.02,220.01,7.44026025]
[1759356519571,0.1,220.02,219.94,11.36647682]
[1759356519773,0.1,220.02,219.98,0.71]
[1759356520082,4.64505279,220.02,219.94,20.8]
[1759356520269,2.18501231,219.95,219.9,0.71]
[1759356520466,0.67,219.94,219.87,0.71]
[1759356520771,13.06148752,219.95,219.88,2.89501231]
[1759356520991,10.87647521,219.95,219.89,2.89501231]
[1759356521294,13.06148752,219.95,219.89,0.71]
[1759356521491,2.18501231,219.93,219.86,2.18501231]
[1759356521699,2.18501231,219.91,219.84,2.89501231]
[1759356521860,2.18501231,219.91,219.85,0.28432314]
[1759356522260,1.39847456,219.91,219.85,0.28432314]
[1759356522499,1.39847456,219.91,219.84,0.71]
[1759356522500,1.39847456,219.9,219.84,0.71]
[1759356522684,1.39847456,219.9,219.84,0.99432314]
[1759356522987,1.39847456,219.9,219.84,0.71]
[1759356523288,2.06847456,219.89,219.81,0.71]
[1759356523491,1.39847456,219.88,219.81,2.10847456]
[1759356523790,6.61638162,219.89,219.82,0.28432314]
[1759356524175,1.39847456,219.87,219.81,0.71]
[1759356524391,2.06847456,219.87,219.79,34.24847456]
[1759356524766,1.39847456,219.86,219.79,34.24847456]
[1759356524962,1.39847456,219.85,219.79,32.14]
[1759356525168,2.06847456,219.85,219.78,0.71]
[1759356525362,2.06847456,219.85,219.78,0.99432314]
[1759356525578,2.06847456,219.85,219.78,2.10847456]
[1759356525798,2.06847456,219.85,219.78,0.71]
[1759356525998,2.06847456,219.85,219.78,2.10847456]
[1759356526889,6.6170858,219.85,219.78,2.10847456]
[1759356527092,2.06847456,219.85,219.78,2.10847456]
[1759356527280,6.61708064,219.85,219.78,2.3927977]
[1759356527592,0.67,219.84,219.77,1.6827977]
[1759356527809,2.06847456,219.84,219.77,1.6827977]
[1759356528183,2.06847456,219.84,219.77,0.28432314]
[1759356528184,1.39847456,219.83,219.77,0.28432314]
[1759356528585,2.06847456,219.84,219.77,1.6827977]
[1759356528801,0.67,219.84,219.77,1.6827977]
[1759356529009,2.06847456,219.84,219.77,1.6827977]
[1759356529610,2.06847456,219.84,219.77,2.3927977]
[1759356530091,2.06847456,219.84,219.78,1.39847456]
[1759356530488,12.94494977,219.83,219.76,1.39847456]
[1759356530709,12.94494977,219.83,219.76,2.10847456]
[1759356530914,12.94494977,219.83,219.76,0.71]
[1759356531210,12.94494977,219.83,219.76,6.65889231]
[1759356531447,12.94494977,219.83,219.76,2.10847456]
[1759356531605,11.54647521,219.83,219.77,1.39847456]
[1759356531912,11.54647521,219.83,219.78,1.39847456]
[1759356532089,11.54647521,219.83,219.78,2.10847456]
[1759356532286,10.87647521,219.85,219.79,0.71]
[1759356532513,12.27494977,219.85,219.79,2.10847456]
[1759356533009,10.87647521,219.85,219.8,1.39847456]
[1759356533209,12.27494977,219.86,219.8,2.10847456]
[1759356533406,0.67,219.85,219.8,2.10847456]
[1759356533605,16.82338868,219.86,219.79,1.39847456]
[1759356533817,0.7,219.84,219.79,1.39847456]
[1759356534117,0.7,219.84,219.79,2.08847456]
[1759356534413,0.7,219.83,219.79,1.39847456]
[1759356535413,0.7,219.82,219.77,2.08847456]
[1759356535619,10.87647521,219.85,219.79,1.39847456]
[1759356535819,10.87647521,219.85,219.79,2.08847456]
[1759356536707,10.87647521,219.85,219.8,1.39847456]
[1759356536907,11.57647521,219.85,219.8,1.39847456]
[1759356537722,0.7,219.84,219.8,1.39847456]
[1759356537891,0.7,219.84,219.79,1.39847456]
[1759356538095,16.82353657,219.85,219.79,1.39847456]
[1759356538304,16.82353657,219.85,219.8,0.69]
[1759356538599,0.7,219.84,219.79,1.39847456]
[1759356538906,0.7,219.84,219.79,2.08847456]
[1759356539921,2.09847456,219.84,219.79,0.69]
[1759356541407,6.64726707,219.84,219.79,0.69]
[1759356541725,2.09847456,219.84,219.79,0.69]
[1759356541897,6.64725928,219.84,219.79,0.69]
[1759356542095,0.7,219.83,219.79,0.69]
[1759356542298,0.7,219.82,219.78,1.39847456]
[1759356542499,0.7,219.82,219.77,1.39847456]
[1759356542716,2.09847456,219.82,219.76,5.94886901]
[1759356542925,6.64773068,219.82,219.75,5.24059454]
[1759356543129,6.64773068,219.82,219.76,1.39847456]
[1759356543318,43.67647521,219.81,219.71,0.69]
[1759356543502,43.67647521,219.81,219.74,1.39847456]
[1759356543503,10.87647521,219.79,219.74,1.39847456]
[1759356543701,10.87647521,219.8,219.75,2.08847456]
[1759356544325,32.82,219.81,219.76,2.08847456]
[1759356544704,34.21847456,219.81,219.76,0.69]
[1759356544903,2.09847456,219.81,219.76,0.69]
[1759356545714,0.7,219.8,219.74,1.39847456]
[1759356546505,11.57647521,219.79,219.74,1.39847456]
[1759356546629,0.7,219.78,219.74,1.39847456]
[1759356547214,0.7,219.78,219.71,0.69]
[1759356547215,0.7,219.77,219.71,0.69]
[1759356547518,0.7,219.77,219.72,1.39847456]
[1759356547733,2.09847456,219.77,219.71,2.08847456]
[1759356547911,0.7,219.77,219.72,1.39847456]
[1759356548109,0.7,219.77,219.72,2.08847456]
[1759356548521,0.7,219.77,219.72,0.69]
[1759356549820,0.7,219.77,219.71,1.39847456]
[1759356550017,12.27494977,219.78,219.73,0.69]
[1759356550229,12.97494977,219.78,219.73,0.69]
[1759356550954,10.87647521,219.85,219.77,1.39847456]
[1759356551248,20.8,219.82,219.77,1.39847456]
[1759356551459,10.87647521,219.83,219.78,0.69]
[1759356551642,10.87647521,219.83,219.79,0.69]
[1759356552144,10.87647521,219.83,219.77,6.63867899]
[1759356552349,0.7,219.82,219.77,2.08847456]
[1759356554161,0.7,219.81,219.76,1.39847456]
[1759356554453,1.39847456,219.82,219.76,0.69]
[1759356554650,0.7,219.81,219.76,2.08847456]
[1759356555140,0.7,219.81,219.76,0.69]
[1759356555339,0.7,219.81,219.76,2.08847456]
[1759356555647,1.39847456,219.82,219.77,0.69]
[1759356555833,6.64766722,219.82,219.77,0.69]
[1759356556152,10.87647521,219.83,219.79,1.39847456]
[1759356556453,10.87647521,219.83,219.78,1.39847456]
[1759356556756,10.87647521,219.83,219.79,2.08847456]
[1759356557067,16.82394556,219.83,219.74,4.55074992]
[1759356557242,10.87647521,219.81,219.76,1.39847456]
[1759356557450,10.87647521,219.81,219.77,2.08847456]
[1759356557837,11.57647521,219.81,219.77,1.39847456]
[1759356558234,16.82440724,219.81,219.75,2.08847456]
[1759356558458,0.7,219.8,219.75,2.08847456]
[1759356558861,12.27494977,219.81,219.75,2.08847456]
[1759356559168,17.52443876,219.81,219.75,1.39847456]
[1759356559364,16.1259642,219.81,219.75,1.39847456]
[1759356559663,10.87647521,219.79,219.73,1.39847456]
[1759356559862,12.27494977,219.79,219.73,1.39847456]
[1759356560045,10.87647521,219.79,219.73,1.39847456]
[1759356560742,10.87647521,219.79,219.7,13.41280065]
[1759356560743,10.87647521,219.77,219.71,1.39847456]
[1759356561060,10.87647521,219.77,219.71,2.08847456]
[1759356562466,10.87647521,219.77,219.72,4.55124704]
[1759356562655,10.87647521,219.77,219.72,5.24124704]
[1759356563770,10.87647521,219.77,219.73,0.7]
[1759356564070,10.87647521,219.77,219.67,0.2]
[1759356564071,10.87647521,219.73,219.67,0.9]
[1759356564247,10.87647521,219.73,219.67,5.45226105]
[1759356564248,12.27494977,219.73,219.67,5.45226105]
[1759356564448,10.87647521,219.73,219.67,6.85073561]
[1759356565065,10.87647521,219.73,219.68,2.09847456]
[1759356565242,132.9,219.75,219.7,1.39847456]
[1759356565445,132.9,219.75,219.72,1.39847456]
[1759356565661,132.9,219.75,219.73,0.7]
[1759356566169,32.12,219.8,219.75,4.55062571]
[1759356566375,32.12,219.8,219.75,6.64910027]
[1759356566560,32.12,219.8,219.75,5.25062571]
[1759356566747,10.87647521,219.81,219.75,5.25062571]
[1759356567365,10.87647521,219.81,219.76,1.39847456]
[1759356567556,10.87647521,219.83,219.77,0.7]
[1759356567751,43.01647521,219.83,219.77,0.7]
[1759356568066,0.71,219.82,219.76,1.39847456]
[1759356568264,6.65769644,219.82,219.75,1.39847456]
[1759356568450,6.65769644,219.82,219.74,2.09847456]
[1759356568451,2.10847456,219.81,219.74,2.09847456]
[1759356568650,0.71,219.81,219.75,1.39847456]
[1759356569648,0.71,219.81,219.74,6.64930503]
[1759356569950,2.10847456,219.81,219.74,6.64930503]
[1759356570350,0.71,219.81,219.75,1.39847456]
[1759356570870,12.27494977,219.79,219.72,2.09847456]
[1759356571050,12.27494977,219.79,219.72,6.6497216]
[1759356571653,10.87647521,219.79,219.73,1.39847456]
[1759356572281,10.87647521,219.79,219.73,5.94934562]
[1759356572654,0.71,219.78,219.73,4.55087106]
[1759356572848,0.71,219.78,219.73,6.64934562]
[1759356573972,12.27494977,219.79,219.73,6.64934562]
[1759356574167,10.87647521,219.79,219.73,6.64934562]
[1759356574485,0.71,219.78,219.73,1.39847456]
[1759356574684,0.71,219.78,219.72,4.55122556]
[1759356574853,10.87647521,219.79,219.73,0.7]
[1759356575053,10.87647521,219.8,219.74,1.39847456]
[1759356575264,10.87647521,219.8,219.74,2.09847456]
[1759356575668,12.98494977,219.8,219.74,0.7]
[1759356575849,12.98494977,219.8,219.74,2.09847456]
[1759356576275,17.53462936,219.8,219.74,2.09847456]
[1759356576589,0.71,219.79,219.74,1.39847456]
[1759356576769,0.71,219.78,219.74,1.39847456]
[1759356577278,0.71,219.77,219.74,1.39847456]
[1759356577572,0.71,219.77,219.71,0.7]
[1759356577573,0.71,219.77,219.73,1.39847456]
[1759356577764,10.87647521,219.78,219.73,1.39847456]
[1759356577971,11.58647521,219.78,219.73,1.39847456]
[1759356578159,0.71,219.77,219.73,1.39847456]
[1759356579179,0.71,219.77,219.74,1.39847456]
[1759356580054,10.87647521,219.78,219.74,1.39847456]
[1759356580353,11.58647521,219.78,219.74,1.39847456]
[1759356582359,11.58647521,219.78,219.75,1.39847456]
[1759356582577,0.71,219.77,219.72,0.7]
[1759356582876,15.42651828,219.78,219.74,1.39847456]
[1759356583180,0.71,219.77,219.74,1.39847456]
[1759356584267,0.71,219.77,219.74,2.18753828]
[1759356584584,15.42651828,219.78,219.74,2.18753828]
[1759356584772,11.58647521,219.78,219.74,2.18753828]
[1759356585170,11.58647521,219.78,219.75,2.18753828]
[1759356585687,43.62647521,219.78,219.75,2.18753828]
[1759356585866,48.17654231,219.78,219.75,2.18753828]
[1759356586067,16.13654231,219.78,219.72,5.25114605]
[1759356586271,16.13654231,219.78,219.75,2.18753828]
[1759356586475,48.17654231,219.78,219.75,2.18753828]
[1759356586787,16.13654231,219.78,219.75,2.18753828]
[1759356587278,0.71,219.77,219.75,2.18753828]
[1759356587684,47.46654231,219.78,219.75,2.18753828]
[1759356587888,0.71,219.77,219.75,2.18753828]
[1759356588381,11.58647521,219.76,219.67,2.38753828]
[1759356588590,144.27479204,219.79,219.67,2.38753828]
[1759356588591,10.87647521,219.74,219.71,2.18753828]
[1759356588765,11.58647521,219.74,219.71,2.18753828]
[1759356590188,10.87647521,219.74,219.71,2.18753828]
[1759356590490,10.87647521,219.74,219.73,2.18753828]
[1759356592084,5.26044352,219.76,219.73,2.18753828]
[1759356592268,10.87647521,219.74,219.73,2.18753828]
[1759356593089,132.9,219.79,219.73,2.88753828]
[1759356593269,10.87647521,219.77,219.73,0.7]
[1759356593469,10.87647521,219.77,219.76,2.18753828]
[1759356595263,132.9,219.78,219.76,2.90753828]
[1759356595462,132.9,219.78,219.77,2.18753828]
[1759356596272,132.9,219.78,219.77,2.90753828]
[1759356597468,132.9,219.78,219.77,2.18753828]
[1759356598492,132.9,219.78,219.74,0.72]
[1759356598680,143.77647521,219.78,219.77,2.18753828]
[1759356599705,143.77647521,219.78,219.77,2.90753828]
[1759356599883,143.77647521,219.78,219.75,5.27053955]
[1759356600067,143.77647521,219.78,219.77,2.18753828]
[1759356600397,2.18753828,219.85,219.77,2.18753828]
[1759356600398,42.91647521,219.83,219.77,2.90753828]
[1759356600568,10.87647521,219.86,219.82,2.18753828]